bitfinex/quotes_ETHUSD_20240828
["timestamp","ask_amount","ask_price","bid_price","bid_amount"]
[1724841307787,4.9904,2522.1,2521.8,3.96529]
[1724841308863,4.9904,2522.1,2521.9,3.96524]
[1724841309053,4.9904,2522.1,2521.8,3.96529]
[1724841309263,0.07895126,2522.0,2521.6,3.96568]
[1724841309727,5.0989,2521.9,2521.6,3.96568]
[1724841309881,0.07895126,2521.8,2521.4,11.4539946]
[1724841310165,5.0642,2521.7,2521.5,3.0]
[1724841310366,5.14315126,2521.7,2521.4,0.5220746]
[1724841310572,5.0642,2521.5,2521.4,0.1259746]
[1724841310795,13.32010953,2521.5,2521.4,0.1259746]
[1724841311009,13.07493126,2521.5,2521.4,0.1259746]
[1724841311287,5.14315126,2521.5,2521.4,0.1259746]
[1724841311504,5.0642,2521.5,2521.4,0.1259746]
[1724841311707,5.0642,2521.5,2521.4,0.16887048]
[1724841311853,5.0642,2521.5,2521.4,8.10097048]
[1724841312054,5.0642,2521.5,2521.4,4.13492048]
[1724841312252,5.0642,2521.5,2521.4,0.16887048]
[1724841313519,5.57062,2521.5,2521.4,0.16887048]
[1724841313699,5.64957126,2521.5,2521.4,0.16887048]
[1724841314591,5.57062,2521.5,2521.4,0.16887048]
[1724841315657,4.9499,2521.8,2521.6,3.96559]
[1724841316065,4.9499,2521.8,2521.7,3.96557]
[1724841316265,4.9499,2521.8,2521.7,7.97403588]
[1724841316907,0.07895126,2522.5,2522.4,3.96447]
[1724841317189,4.9499,2522.6,2522.4,0.04318979]
[1724841317417,0.07895126,2522.5,2522.4,0.04318979]
[1724841317715,0.07895126,2522.5,2522.2,3.96473]
[1724841318019,0.07895126,2522.5,2522.3,0.04294836]
[1724841318389,4.5471,2522.4,2522.3,0.04294836]
[1724841318590,5.40613113,2522.4,2521.9,3.96515]
[1724841318817,5.40613113,2522.4,2521.9,3.96524]
[1724841319020,5.40613113,2522.4,2521.7,3.9461]
[1724841319021,4.5471,2522.4,2522.3,3.96463]
[1724841319902,4.61,2522.7,2522.6,3.96416]
[1724841320117,4.61,2522.7,2521.7,4.36157]
[1724841320118,4.61,2522.3,2521.7,4.36157]
[1724841320291,4.9704,2521.8,2521.3,3.96611]
[1724841320493,4.9704,2521.8,2521.1,3.96643]
[1724841320494,0.97251726,2521.7,2521.1,3.96643]
[1724841320813,8.93629,2521.5,2521.0,1.0]
[1724841321016,4.9704,2521.5,2521.1,3.96638]
[1724841321235,5.04935126,2521.5,2521.1,3.96638]
[1724841321404,12.98113126,2521.5,2521.0,1.0]
[1724841321608,10.31335439,2521.5,2521.0,1.0]
[1724841322241,6.34746439,2521.5,2521.0,1.0]
[1724841322533,4.9704,2521.5,2521.0,4.7525746]
[1724841322739,0.07895126,2521.4,2521.0,4.7525746]
[1724841323087,0.07895126,2521.4,2521.1,3.96651]
[1724841323292,4.9704,2521.5,2521.4,3.96605]
[1724841323605,4.9704,2521.5,2521.4,8.4821]
[1724841324152,4.9704,2521.5,2521.2,3.96631]
[1724841324432,4.9704,2521.5,2521.0,7.7525846]
[1724841324433,4.9704,2521.5,2521.0,7.7525546]
[1724841324631,5.04935126,2521.5,2521.2,3.96626]
[1724841324936,4.9704,2521.5,2521.2,3.96626]
[1724841325305,0.07895126,2521.4,2521.0,3.7859746]
[1724841325506,4.5772,2521.3,2521.0,0.7859746]
[1724841325724,4.5772,2521.3,2521.0,4.7525946]
[1724841326032,4.5772,2521.3,2521.0,4.7525246]
[1724841326443,4.5772,2521.3,2521.2,3.96636]
[1724841327439,4.678,2521.6,2521.5,3.96589]
[1724841327803,4.678,2521.6,2521.5,0.04105231]
[1724841328242,4.678,2521.6,2521.3,4.3622]
[1724841328530,4.678,2521.6,2521.5,7.93178]
[1724841328741,4.678,2521.6,2521.5,8.48178]
[1724841328940,4.8909,2521.9,2521.6,3.96561]
[1724841329171,4.8909,2521.9,2521.5,3.59103131]
[1724841329172,0.07895126,2521.8,2521.5,0.55]
[1724841329467,8.8565,2521.7,2521.6,0.04103131]
[1724841329734,5.0006,2521.6,2521.1,3.96652]
[1724841329897,5.0006,2521.4,2521.2,0.04103131]
[1724841330092,0.07895126,2521.3,2521.0,1.1835746]
[1724841330292,4.8408,2521.2,2521.1,0.04103131]
[1724841330519,4.04531126,2521.2,2521.1,0.04103131]
[1724841330733,8.88611126,2521.2,2521.1,0.04103131]
[1724841331036,4.91975126,2521.2,2521.1,0.04103131]
[1724841331246,5.81985424,2521.2,2521.1,0.04103131]
[1724841331403,5.8988055,2521.2,2521.1,0.04103131]
[1724841331611,4.8408,2521.2,2521.1,0.04103131]
[1724841331921,4.8408,2521.2,2521.1,4.00755131]
[1724841332142,4.8408,2521.2,2521.1,0.11803021]
[1724841333020,4.8408,2521.2,2521.1,8.05107021]
[1724841333248,4.8408,2521.2,2521.1,4.08455021]
[1724841333537,3.96499,2522.1,2521.5,3.96583]
[1724841333538,4.7791,2521.9,2521.5,3.96583]
[1724841333699,4.7791,2521.9,2521.5,7.93161]
[1724841334038,4.8232,2521.7,2521.6,0.11803021]
[1724841334523,4.8232,2521.7,2521.3,3.9662]
[1724841334524,4.8232,2521.7,2521.3,3.96609]
[1724841334846,0.07895126,2521.6,2521.4,0.11817721]
[1724841335437,4.736,2521.5,2521.2,3.96627]
[1724841336033,4.736,2521.5,2521.3,3.96619]
[1724841336252,0.07895126,2521.4,2521.0,4.7525546]
[1724841336467,5.0044,2521.3,2521.2,3.96636]
[1724841336971,5.0044,2521.3,2521.0,0.7859746]
[1724841337269,0.07895126,2521.2,2521.0,0.7859746]
[1724841337637,5.0044,2521.3,2521.0,4.7525646]
[1724841337841,5.08335126,2521.3,2521.0,4.7525646]
[1724841338041,4.838,2521.1,2521.0,0.7859746]
[1724841338555,4.91695126,2521.1,2521.0,0.7859746]
[1724841340065,4.838,2521.1,2521.0,0.7859746]
[1724841340427,4.838,2521.1,2521.0,8.7193146]
[1724841340632,4.838,2521.1,2521.0,5.3026446]
[1724841341073,4.838,2521.1,2521.0,9.2693146]
[1724841341377,4.838,2521.1,2521.0,0.7859746]
[1724841341761,5.3218,2521.1,2521.0,0.7859746]
[1724841342975,5.3218,2521.1,2521.0,0.90435134]
[1724841343539,4.838,2521.1,2521.0,0.90435134]
[1724841344369,4.91695126,2521.1,2521.0,0.90435134]
[1724841344898,4.838,2521.1,2521.0,4.87102134]
[1724841345239,4.838,2521.1,2521.0,0.90435134]
[1724841345636,4.838,2521.1,2521.0,4.87102134]
[1724841345843,4.838,2521.1,2521.0,0.90435134]
[1724841346241,4.838,2521.1,2521.0,4.87102134]
[1724841347560,4.838,2521.1,2521.0,8.83769134]
[1724841347966,4.838,2521.1,2521.0,9.38769134]
[1724841348161,4.9212,2521.5,2521.4,3.96589]
[1724841348363,4.9212,2521.5,2521.4,4.08446627]
[1724841348560,4.9212,2521.5,2521.4,0.11857627]
[1724841348964,4.9212,2521.5,2521.4,3.96605]
[1724841349165,4.9212,2521.5,2521.4,4.08462627]
[1724841349490,4.9212,2521.5,2521.4,8.60067627]
[1724841349864,4.9212,2521.5,2521.4,8.99827627]
[1724841350059,4.8473,2521.8,2521.7,3.9655]
[1724841350277,4.8473,2521.8,2521.7,7.93107]
[1724841350479,0.07895126,2522.1,2521.7,7.93107]
[1724841350480,4.8473,2522.1,2522.0,3.9651]
[1724841350991,5.03045126,2522.5,2522.3,3.96454]
[1724841351199,5.03045126,2522.5,2522.0,0.66857627]
[1724841351200,4.9515,2522.5,2522.4,8.47894]
[1724841351406,4.9515,2522.5,2522.4,8.59751627]
[1724841351711,4.67,2522.8,2522.6,3.96407]
[1724841351868,4.67,2522.8,2522.7,3.964]
[1724841352256,4.67,2522.8,2522.7,0.11857627]
[1724841352999,5.137,2522.8,2522.7,0.11857627]
[1724841353298,5.137,2522.8,2522.6,3.96406]
[1724841353458,4.67,2522.8,2522.7,0.11857627]
[1724841353652,4.74895126,2522.8,2522.7,0.11857627]
[1724841353883,5.14489513,2522.8,2522.6,3.96415]
[1724841354057,4.67,2522.8,2522.7,8.04657627]
[1724841354258,4.9651,2523.3,2522.9,3.96359]
[1724841354573,0.07895126,2523.2,2523.0,0.11559535]
[1724841356227,0.07895126,2523.2,2522.8,3.96382]
[1724841356401,1.03891899,2523.2,2523.1,0.11559535]
[1724841356596,1.03891899,2523.2,2522.7,4.51387]
[1724841356930,4.8188,2523.0,2522.8,0.11559535]
[1724841357227,4.8188,2523.0,2522.1,5.66104203]
[1724841357431,4.8188,2523.0,2522.9,0.1153541]
[1724841357588,9.660632,2523.0,2522.5,3.9643]
[1724841357790,0.07895126,2522.9,2522.6,0.1153541]
[1724841358031,1.44927659,2522.9,2522.4,6.96445]
[1724841358191,4.8363,2522.8,2522.7,0.1153541]
[1724841358391,4.8363,2522.8,2522.4,6.96445]
[1724841358687,4.8363,2522.8,2522.5,0.1153541]
[1724841358894,5.86121966,2522.8,2522.5,0.1153541]
[1724841359532,9.82514966,2522.8,2522.5,0.1153541]
[1724841359689,5.86121966,2522.8,2522.5,0.1153541]
[1724841360090,5.94017092,2522.8,2522.5,0.1153541]
[1724841360604,5.94017092,2522.8,2522.5,4.0796741]
[1724841360605,4.91525126,2522.8,2522.5,4.0796741]
[1724841360925,4.91525126,2522.8,2522.5,4.0796641]
[1724841361131,4.8363,2522.8,2522.6,3.96403]
[1724841361363,4.8363,2522.8,2522.6,3.96416]
[1724841361661,4.8363,2522.8,2522.7,0.1153541]
[1724841361999,4.8363,2522.8,2522.4,3.0]
[1724841362198,0.07895126,2522.7,2522.5,0.1153541]
[1724841362399,5.79524626,2522.8,2522.5,0.1153541]
[1724841362601,4.91525126,2522.8,2522.5,4.0796341]
[1724841362858,4.5745,2523.1,2522.8,3.96384]
[1724841363147,8.61690126,2523.1,2522.6,3.96406]
[1724841363343,0.853776,2523.0,2522.9,0.11557437]
[1724841363499,0.853776,2523.0,2522.7,0.55]
[1724841364001,4.5745,2523.1,2522.8,0.11557437]
[1724841364002,4.65345126,2523.1,2522.8,0.11557437]
[1724841364199,4.04244126,2523.1,2522.8,0.11557437]
[1724841364400,4.7713,2523.0,2522.6,3.96407]
[1724841364645,4.7713,2523.0,2522.7,0.66543801]
[1724841364800,4.85025126,2523.0,2522.7,0.66543801]
[1724841365004,4.85025126,2523.0,2522.7,0.55]
[1724841365005,4.7713,2523.0,2522.7,0.55]
[1724841365211,4.7713,2523.0,2522.8,4.07926801]
[1724841365826,4.7713,2523.0,2522.8,0.11543801]
[1724841366036,0.07895126,2522.9,2522.8,0.11543801]
[1724841366368,4.04264126,2522.9,2522.8,0.11543801]
[1724841366549,4.71045126,2522.9,2522.5,3.0]
[1724841366709,4.71045126,2522.9,2522.8,0.11519675]
[1724841366908,5.97422439,2522.9,2522.5,3.0]
[1724841367104,9.93791439,2522.9,2522.8,0.11519675]
[1724841367352,4.9112,2522.5,2522.2,3.96474]
[1724841367549,4.9112,2522.5,2522.1,3.96479]
[1724841367840,5.03195126,2522.4,2522.1,3.96485]
[1724841368048,5.03195126,2522.4,2522.2,0.11519675]
[1724841368408,5.03195126,2522.4,2522.1,3.96489]
[1724841368409,4.953,2522.4,2522.1,3.96489]
[1724841368756,4.953,2522.4,2522.0,3.9651]
[1724841368757,4.953,2522.4,2522.2,4.07990675]
[1724841369145,4.953,2522.4,2522.2,0.11519675]
[1724841369146,0.07895126,2522.3,2522.2,0.11519675]
[1724841369457,0.07895126,2522.3,2522.0,3.96499]
[1724841369458,0.57425126,2522.3,2522.0,3.96499]
[1724841369752,0.07895126,2522.3,2522.2,0.11559537]
[1724841369911,0.07895126,2522.3,2522.0,3.96499]
[1724841370147,0.07895126,2522.3,2522.2,0.11559537]
[1724841370346,0.50319513,2522.3,2522.2,0.11559537]
[1724841370556,5.03195126,2522.4,2522.1,3.96492]
[1724841370756,5.03195126,2522.4,2522.2,0.11559537]
[1724841371364,5.93156239,2522.4,2522.0,3.96501]
[1724841371549,5.03195126,2522.4,2522.1,0.11559537]
[1724841371779,4.953,2522.4,2522.1,0.11559537]
[1724841371973,4.953,2522.4,2522.2,4.51471]
[1724841372303,4.953,2522.4,2522.2,3.96471]
[1724841372450,4.953,2522.4,2522.3,0.11559537]
[1724841372791,5.93156439,2522.4,2522.1,3.96493]
[1724841372997,5.93156439,2522.4,2522.2,0.11559537]
[1724841373292,5.03195126,2522.4,2522.2,0.11559537]
[1724841373649,5.03195126,2522.4,2522.0,3.96498]
[1724841373905,5.03195126,2522.4,2521.9,3.0]
[1724841373906,8.99645126,2522.4,2522.3,0.11559537]
[1724841374085,4.4898,2522.3,2521.9,6.96525]
[1724841374253,4.56875126,2522.3,2521.9,6.96525]
[1724841374895,4.4898,2522.3,2522.1,3.96493]
[1724841376053,4.4898,2522.3,2522.2,3.96479]
[1724841378270,4.4898,2522.3,2522.2,7.92958]
[1724841378474,4.4898,2522.3,2522.2,8.47958]
[1724841378705,4.54895126,2523.0,2522.6,3.96414]
[1724841379073,4.54895126,2523.0,2522.6,7.92821]
[1724841379279,4.54895126,2523.0,2522.7,3.96388]
[1724841379512,4.47,2523.0,2522.8,3.96381]
[1724841380064,4.47,2523.0,2522.7,3.96388]
[1724841380065,4.47,2523.0,2522.9,3.96369]
[1724841380923,3.96298,2523.4,2523.3,3.96292]
[1724841380924,4.4096,2523.4,2523.3,3.96292]
[1724841381391,4.4096,2523.4,2523.3,7.92591]
[1724841382189,3.96169,2524.2,2523.4,7.9258]
[1724841382190,4.7936,2523.7,2523.4,7.9258]
[1724841382597,4.7936,2523.7,2523.4,8.4758]
[1724841383788,4.52985126,2524.0,2523.4,12.4387]
[1724841383987,4.52985126,2524.0,2523.4,15.8363]
[1724841384229,4.52985126,2524.0,2523.4,11.8734]
[1724841384911,4.4509,2524.0,2523.4,15.8363]
[1724841385927,4.4509,2524.0,2523.4,19.204654]
[1724841386536,4.4509,2524.0,2523.4,14.844154]
[1724841386740,4.4509,2524.0,2523.4,19.09080483]
[1724841387574,4.7433,2524.3,2523.4,19.09080483]
[1724841387740,4.7433,2524.3,2523.4,23.05370483]
[1724841387941,4.7433,2524.3,2523.4,23.16584069]
[1724841388980,1.1367978,2523.5,2523.4,23.16584069]
[1724841389156,7.8e-06,2523.5,2523.4,23.16584069]
[1724841389475,4.5741,2524.6,2524.5,7.92236]
[1724841389775,4.5741,2524.6,2524.5,8.03428635]
[1724841389981,4.5741,2524.6,2524.5,4.07310635]
[1724841390133,4.5741,2524.6,2524.5,0.11192635]
[1724841390333,4.5741,2524.6,2524.5,4.07310635]
[1724841391143,4.5741,2524.6,2524.5,8.03428635]
[1724841391346,4.5741,2524.6,2524.5,11.58428635]
[1724841391632,4.6291,2525.1,2524.9,3.9604]
[1724841391834,4.6291,2525.1,2525.0,3.96039]
[1724841392079,4.6291,2525.1,2525.0,0.1113713]
[1724841392886,9.05224,2525.1,2525.0,0.1113713]
[1724841393084,3.96042,2525.0,2524.6,3.0]
[1724841393296,4.87965126,2524.9,2524.6,3.0]
[1724841394208,4.8007,2524.9,2524.6,6.96101]
[1724841394369,4.8007,2524.9,2524.7,4.51078]
[1724841394908,4.8007,2524.9,2524.7,0.55]
[1724841395200,4.8346,2524.6,2524.4,0.3976]
[1724841395412,4.91355126,2524.6,2524.4,0.3976]
[1724841395700,4.8346,2524.3,2524.0,3.96191]
[1724841396003,4.8346,2524.3,2524.1,3.96179]
[1724841396515,4.8346,2524.3,2524.2,3.96165]
[1724841397064,4.8346,2524.3,2524.2,0.55]
[1724841397371,4.8346,2524.3,2523.9,3.96201]
[1724841397603,4.8346,2524.3,2524.0,3.0]
[1724841397808,3.96208,2524.0,2523.4,3.96282]
[1724841397965,3.96208,2524.0,2523.2,9.61423519]
[1724841397966,4.756,2523.7,2523.2,3.96312]
[1724841398165,4.756,2523.7,2522.9,5.65111519]
[1724841398166,4.756,2523.7,2523.5,3.96265]
[1724841398396,4.756,2523.7,2523.6,3.96259]
[1724841398663,4.756,2523.7,2523.5,3.96274]
[1724841398892,4.756,2523.7,2523.3,3.96294]
[1724841399820,8.79741126,2523.7,2523.2,3.96322]
[1724841400011,8.79741126,2523.7,2523.0,0.3976]
[1724841400012,4.3913,2523.5,2523.0,0.3976]
[1724841400358,4.3913,2523.3,2522.7,3.96391]
[1724841400509,4.3913,2523.2,2522.7,8.3254]
[1724841400704,4.3913,2523.2,2522.9,3.96369]
[1724841401011,4.3913,2523.2,2523.1,3.96337]
[1724841401403,4.3913,2523.2,2522.7,0.3976]
[1724841401609,4.3913,2523.2,2522.8,3.96381]
[1724841401834,4.3913,2523.2,2522.7,4.36146]
[1724841402109,4.4377,2523.1,2522.7,4.36146]
[1724841402823,4.4377,2523.1,2522.9,3.96366]
[1724841403452,4.4377,2523.1,2523.0,0.10000678]
[1724841403811,4.4377,2523.1,2522.8,3.3976]
[1724841404019,4.4377,2523.1,2522.9,0.10000678]
[1724841404548,4.4377,2523.1,2522.9,4.06367678]
[1724841404726,4.4377,2523.1,2523.0,4.51353]
[1724841405226,4.4377,2523.1,2523.0,4.61353678]
[1724841407742,8.40107,2523.1,2523.0,0.10000678]
[1724841407947,8.84484,2523.1,2523.0,0.10000678]
[1724841408142,4.7326,2523.0,2522.7,3.96398]
[1724841408328,4.7326,2523.0,2522.8,3.0]
[1724841410368,4.7326,2523.0,2522.9,8.47738]
[1724841411129,4.7326,2523.0,2522.9,4.51369]
[1724841412646,4.7326,2523.0,2522.8,3.0]
[1724841412862,4.81155126,2523.0,2522.8,3.0]
[1724841413275,5.68904439,2523.0,2522.5,3.96422]
[1724841413474,5.68904439,2523.0,2522.6,3.0]
[1724841413475,4.5161,2522.9,2522.6,3.0]
[1724841413679,4.59505126,2522.9,2522.6,3.0]
[1724841413885,4.59505126,2522.9,2522.7,3.96398]
[1724841414051,4.59505126,2522.9,2522.6,3.0]
[1724841414052,9.41465439,2522.9,2522.6,3.0]
[1724841414382,4.7507,2522.8,2522.5,3.96431]
[1724841414538,4.82965126,2522.8,2522.6,3.0]
[1724841414741,0.07895126,2522.7,2522.4,6.96446]
[1724841414940,4.7507,2522.7,2522.4,3.0]
[1724841415168,4.7507,2522.5,2522.4,3.0]
[1724841415762,4.7507,2522.5,2522.4,6.96447]
[1724841416261,4.7507,2522.5,2522.4,3.0]
[1724841416474,4.7507,2522.5,2522.3,3.0]
[1724841416669,4.7507,2522.5,2522.3,6.96461]
[1724841416840,4.7507,2522.5,2522.4,7.92894]
[1724841417042,4.7507,2522.5,2522.4,10.92894]
[1724841417746,4.7507,2522.5,2522.4,15.44341]
[1724841418060,4.7507,2522.5,2522.4,15.54642361]
[1724841418472,4.7507,2522.5,2522.4,15.94402361]
[1724841418785,4.3689,2523.2,2522.8,3.96374]
[1724841418984,4.3689,2523.2,2522.9,0.55]
[1724841418985,5.60628513,2523.2,2522.9,0.55]
[1724841419145,4.3689,2523.2,2523.0,3.96353]
[1724841419541,4.3689,2523.2,2523.1,0.10307647]
[1724841420450,4.3689,2523.2,2523.1,4.06644647]
[1724841421741,4.3689,2523.2,2523.1,0.10307647]
[1724841425081,4.3689,2523.2,2523.1,4.06644647]
[1724841426782,4.3689,2523.2,2523.1,0.10307647]
[1724841427086,4.3689,2523.2,2523.1,4.06644647]
[1724841427918,4.3689,2523.2,2523.1,0.10307647]
[1724841429009,4.3689,2523.2,2523.1,4.06644647]
[1724841430218,4.3689,2523.2,2523.1,0.10307647]
[1724841431320,4.3689,2523.2,2523.1,4.06644647]
[1724841431932,4.3689,2523.2,2523.1,12.07245283]
[1724841432263,4.715,2524.1,2523.9,3.96202]
[1724841432615,4.715,2524.1,2524.0,0.10262576]
[1724841433019,4.715,2524.1,2523.8,3.96227]
[1724841433268,4.715,2524.1,2524.0,0.10262576]
[1724841433572,13.51414613,2524.1,2524.0,0.10262576]
[1724841433722,3.96278,2523.5,2523.0,0.3976]
[1724841433928,4.8375,2523.3,2523.0,4.3611]
[1724841434636,4.8375,2523.3,2523.0,8.3246]
[1724841434828,4.8375,2523.3,2523.0,4.3611]
[1724841435023,4.8375,2523.3,2523.0,4.36103]
[1724841435223,4.8375,2523.3,2523.0,8.32447]
[1724841435547,4.8375,2523.3,2523.0,7.92687]
[1724841436121,4.8375,2523.3,2523.0,3.96343]
[1724841437263,4.8375,2523.3,2522.8,7.92744]
[1724841437464,4.8375,2523.3,2522.9,7.51359]
[1724841437842,4.8375,2523.3,2523.0,3.96349]
[1724841438164,4.8375,2523.3,2523.1,3.96337]
[1724841438520,4.8375,2523.3,2522.9,3.55]
[1724841438726,4.8375,2523.3,2522.9,7.51359]
[1724841441640,4.5275,2522.9,2522.4,3.9644]
[1724841442269,8.57019126,2522.9,2522.2,3.96467]
[1724841442435,4.6392,2522.8,2522.4,3.96445]
[1724841442633,3.96385,2522.8,2522.4,3.96445]
[1724841442837,4.6909,2522.7,2522.4,3.96445]
[1724841443636,4.6909,2522.7,2522.3,4.36223]
[1724841443841,4.6909,2522.7,2522.4,3.0]
[1724841444385,4.6909,2522.7,2522.4,6.96446]
[1724841444552,4.6909,2522.7,2522.5,3.96423]
[1724841444751,4.6909,2522.7,2522.6,3.96416]
[1724841444958,4.7156,2523.3,2523.2,3.96322]
[1724841445156,4.7156,2523.3,2523.2,8.47644]
[1724841445846,4.7156,2523.7,2523.6,3.96259]
[1724841446366,4.7156,2523.7,2523.6,4.51259]
[1724841447978,4.7156,2523.7,2523.6,4.61222487]
[1724841448881,3.96243,2523.7,2523.6,0.09963487]
[1724841449053,5.07646,2523.7,2523.1,4.04252798]
[1724841449264,4.6049,2523.7,2523.1,4.04252798]
[1724841449488,4.6049,2523.7,2523.4,3.96287]
[1724841449970,4.6049,2523.7,2523.5,0.09963487]
[1724841450187,4.85035126,2523.6,2523.1,3.96326]
[1724841450354,4.8424,2523.5,2523.1,3.96326]
[1724841450891,4.92135126,2523.5,2523.1,3.96326]
[1724841451096,4.92135126,2523.5,2523.2,3.96321]
[1724841451253,4.8424,2523.5,2523.2,3.96321]
[1724841451951,4.8424,2523.5,2523.4,3.9629]
[1724841452156,4.8424,2523.5,2523.4,4.5129]
[1724841453157,4.8424,2523.5,2523.4,0.55]
[1724841453389,4.8424,2523.5,2523.3,4.51301]
[1724841454092,4.8424,2523.5,2523.4,3.9629]
[1724841454267,4.8424,2523.5,2523.4,4.5129]
[1724841455575,4.8424,2523.5,2523.4,0.55]
[1724841455783,4.8424,2523.5,2523.3,0.55]
[1724841455993,4.5671,2523.3,2522.8,3.96383]
[1724841456166,4.5671,2523.3,2523.1,3.96334]
[1724841456969,4.5671,2523.3,2523.1,7.92663]
[1724841457276,4.5671,2523.3,2523.1,3.96329]
[1724841457800,4.5671,2523.3,2522.9,4.3612]
[1724841457801,4.5671,2523.3,2522.9,4.36116]
[1724841458011,9.86628939,2523.3,2523.0,0.55]
[1724841458192,8.62497126,2523.2,2522.7,3.9639]
[1724841458371,4.5828,2523.1,2522.8,3.0]
[1724841458707,4.66175126,2523.1,2522.8,3.0]
[1724841459089,4.5828,2523.0,2522.7,3.96389]
[1724841459584,4.66175126,2523.0,2522.5,3.96419]
[1724841459900,4.5828,2522.9,2522.5,7.92842]
[1724841460104,4.5828,2522.9,2522.5,3.96419]
[1724841460262,4.66175126,2522.9,2522.5,3.96419]
[1724841460658,4.66175126,2522.9,2522.5,7.92842]
[1724841460965,4.5828,2522.9,2522.7,3.96399]
[1724841461704,4.5828,2522.9,2522.8,3.96384]
[1724841461914,4.5828,2522.9,2522.8,7.92768]
[1724841462068,4.5828,2522.9,2522.8,11.87528]
[1724841462674,0.07895126,2523.6,2523.2,7.92644]
[1724841462675,4.7912,2523.3,2523.2,7.92644]
[1724841462901,4.7912,2523.3,2523.2,0.64985501]
[1724841463115,5.27032,2523.3,2523.2,0.09985501]
[1724841463274,9.31233126,2523.3,2523.2,0.09985501]
[1724841463479,4.7912,2523.2,2522.7,3.96389]
[1724841463676,4.87015126,2523.1,2522.8,0.09967679]
[1724841464114,5.72815867,2523.1,2522.8,0.09967679]
[1724841464282,4.90042867,2523.1,2522.8,0.09967679]
[1724841464483,4.4556,2523.0,2522.6,3.96416]
[1724841464787,4.4556,2522.8,2522.7,0.09967679]
[1724841465292,4.53455126,2522.8,2522.7,0.09967679]
[1724841465504,4.4556,2522.8,2522.5,3.9643]
[1724841465692,4.4556,2522.8,2522.6,0.09967679]
[1724841466419,5.30541113,2522.8,2522.6,0.09967679]
[1724841466710,5.30541113,2522.8,2522.3,10.92912]
[1724841466711,4.7046,2522.7,2522.3,10.92912]
[1724841467075,4.7046,2522.7,2522.4,3.96445]
[1724841467276,4.7046,2522.7,2522.6,3.96416]
[1724841467476,4.7046,2522.7,2522.6,7.92832]
[1724841467676,4.7046,2522.7,2522.6,8.47832]
[1724841468391,4.7046,2522.7,2522.6,4.51416]
[1724841468609,4.7046,2522.7,2522.6,3.96416]
[1724841469492,4.7046,2522.7,2522.4,3.96435]
[1724841469815,4.9133,2522.8,2522.4,3.96435]
[1724841470020,4.9133,2522.8,2522.2,4.36227]
[1724841470021,4.9133,2522.6,2522.2,4.36227]
[1724841470191,0.07895126,2522.7,2522.2,4.36227]
[1724841470192,0.07895126,2522.5,2522.2,4.36227]
[1724841470381,8.62984,2522.6,2522.1,3.96482]
[1724841470720,4.74455126,2522.5,2522.1,7.92968]
[1724841470922,4.74455126,2522.5,2522.3,3.96461]
[1724841471119,4.6656,2522.5,2522.3,3.96461]
[1724841471284,4.6656,2522.5,2522.4,3.96447]
[1724841471720,4.6656,2522.5,2522.4,7.92894]
[1724841471905,4.6656,2522.5,2522.4,8.47894]
[1724841475003,4.6656,2522.5,2522.3,3.96455]
[1724841475295,4.6656,2522.5,2522.2,7.92942]
[1724841475594,4.6656,2522.5,2522.3,3.96461]
[1724841476632,4.6656,2522.5,2522.4,7.92894]
[1724841476815,4.6656,2522.5,2522.4,8.47894]
[1724841477995,4.6656,2522.5,2522.4,11.57704907]
[1724841478423,4.5717,2523.0,2522.8,3.96384]
[1724841478793,4.5717,2523.0,2522.9,0.09808811]
[1724841479493,4.5717,2523.0,2522.8,3.96384]
[1724841479692,4.5717,2523.0,2522.9,0.09808811]
[1724841480090,5.03676513,2523.0,2522.9,0.09808811]
[1724841480328,5.03676513,2523.0,2522.7,3.9639]
[1724841480532,5.03676513,2523.0,2522.9,0.09808811]
[1724841480533,4.5717,2523.0,2522.9,0.09808811]
[1724841480730,4.5717,2523.0,2522.8,3.96373]
[1724841480906,4.5717,2523.0,2522.9,0.09808811]
[1724841481710,5.51204039,2523.0,2522.6,3.96415]
[1724841482016,4.65065126,2523.0,2522.7,0.09809859]
[1724841482422,4.7612,2522.9,2522.5,3.9643]
[1724841482628,4.84015126,2522.8,2522.5,3.9643]
[1724841483305,0.07895126,2522.7,2522.4,3.55]
[1724841483512,4.8066,2522.6,2522.4,3.0]
[1724841483808,4.8066,2522.6,2522.2,3.96477]
[1724841484408,4.8066,2522.6,2522.3,3.96463]
[1724841484737,4.88555126,2522.6,2522.2,3.96478]
[1724841486301,4.8066,2522.6,2522.2,3.96468]
[1724841486502,4.88555126,2522.6,2522.2,7.9294]
[1724841486764,4.88555126,2522.6,2522.2,7.92939]
[1724841486933,4.88555126,2522.6,2522.2,3.96468]
[1724841487346,4.8542,2522.5,2522.2,3.96468]
[1724841487725,4.93315126,2522.4,2522.0,3.3976]
[1724841487930,4.9022,2522.3,2521.9,3.9651]
[1724841488156,4.98115126,2522.3,2522.0,3.0]
[1724841488431,4.9022,2522.3,2522.1,3.96483]
[1724841490037,4.9022,2522.3,2522.2,3.96479]
[1724841490242,4.9022,2522.3,2522.2,8.47958]
[1724841490485,4.9022,2522.3,2522.2,11.47958]
[1724841491270,0.07895126,2523.0,2522.2,11.47958]
[1724841491271,4.8758,2522.9,2522.7,3.96387]
[1724841491470,4.8758,2522.9,2522.8,3.96384]
[1724841491677,4.8758,2522.9,2522.7,3.96387]
[1724841492172,4.8758,2522.9,2522.8,3.96384]
[1724841492928,4.8758,2522.9,2522.8,11.5733155]
[1724841496278,4.7793,2523.2,2523.1,3.96334]
[1724841496479,4.7793,2523.2,2523.1,8.47671]
[1724841496632,4.7793,2523.2,2523.1,8.5717273]
[1724841497738,4.7793,2523.2,2523.1,11.5717273]
[1724841502786,5.25723,2523.2,2523.1,0.0950173]
[1724841502997,9.32585,2523.2,2523.1,0.0950173]
[1724841503193,4.4859,2523.1,2522.7,3.96399]